Cogmind - Beta 14 X2 @@@ ROGUE MODE // 2024.07.30 @ 22:41:24 Player: Selene Result: Destroyed by G-50 Soldier with Heavy Laser Performance ------------- Evolutions (5) 2500 Regions Visited (10) 2000 Robots Destroyed (91) 455 Value Destroyed (3942) 3942 Prototype IDs (30) 600 Alien Tech Used (0) 0 Bonus (328) 328 TOTAL SCORE: 9825 Bonus ------- High Alert Combat Kills 118 Follower Combat Kills 1109 Network Hubs Disabled 200 Registered with UFD 300 Friendly Fire -1399 Cogmind --------- Core Integrity 0/1000 Matter 12/300 Energy 98/100 System Corruption 7% Temperature Hot (228) Movement Core (50) Location -5/Factory Parts ------- > --- POWER (2) -------- (None) > --- PROPULSION (4) --- (None) > --- UTILITY (9) ------ (None) > --- WEAPON (2) ------- (None) > --- INVENTORY (5) ---- Advanced Drone Bay (2/2) EMDS Improved Plasma Cutter Peak State ------------ > --- POWER ------------ Light Angular Momentum Engine Neutrino Core > --- PROPULSION ------- Centrium Heavy Treads Centrium Heavy Treads > --- UTILITY ---------- Huge Storage Unit Improved Trap Scanner Advanced Signal Interpreter Improved Targeting Computer Improved Kinecellerator Layered Heavy Armor Plating Thermal Shield Hacking Suite > --- WEAPON ----------- KE Penetrator Advanced KE Penetrator > --- INVENTORY -------- Reinforced Deuterium Engine Light Angular Momentum Engine Enhanced Biometal Leg Enhanced Biometal Leg Gravmag Array Advanced Power Amplifier Advanced Heat Sink Huge Storage Unit Advanced Weight Redist. System Improved Sensor Array Energy Filter Focal Shield Improved Shock Absorption System Beamcaster Beamcaster EMDS EMDS Hypervelocity Gauss Rifle Heavy Flak Cannon Improved Datajack Ripper DRS Beacon [Rating: 114] Favorites ----------- Power Improved Ion Engine Engine Improved Ion Engine Power Core Light Nuclear Core Reactor Light Antimatter Reactor Propulsion Light Treads Treads Light Treads Leg Myomer Leg Wheel Wheel Hover Unit Gravmag System Utility Small Storage Unit Device Power Amplifier Storage Small Storage Unit Processor Advanced Signal Interpreter Hackware Hacking Suite Protection Scrap Shield Weapon Makeshift Sword Energy Gun Medium Laser Energy Cannon Powered Cannon Ballistic Gun Subdweller Machine Gun Ballistic Cannon Improved Light Cannon Launcher Grenade Launcher Special Weapon CPS Tube Slashing Weapon Makeshift Sword Build | -11 -10 -10 -9 -9 -6 -6 -6 -6 -6 -5 ------- Run | Yrd Mat Sub Rec Scr Fac Ext Cet Arc Hub Fac Slots Evolved 10 | . . . . . 8 . . . . 2 Power 1 | . . . . . . . . . . 1 Propulsion 2 | . . . . . 2 . . . . . Utility 7 | . . . . . 6 . . . . 1 Weapon . | . . . . . . . . . . . Parts Attached 184 | 8 19 18 15 11 20 36 14 3 7 33 Power 20 | 1 1 1 1 2 1 4 . . 1 8 Engine 14 | 1 . 1 1 2 1 2 . . 1 5 Core 5 | . 1 . . . . 1 . . . 3 Reactor 1 | . . . . . . 1 . . . . Propulsion 50 | 3 5 3 3 6 9 12 5 . 1 3 Treads 22 | 1 2 1 1 3 3 7 2 . 1 1 Leg 10 | . . . . . . 5 3 . . 2 Wheel 15 | 2 3 2 2 2 4 . . . . . Hover 3 | . . . . 1 2 . . . . . Flight . | . . . . . . . . . . . Utility 60 | 2 5 2 5 1 10 12 2 2 3 16 Device 36 | 1 2 1 3 1 5 6 1 2 3 11 Storage 8 | 1 1 . 2 . 1 2 . . . 1 Processor 5 | . . . . . 1 . 1 . . 3 Hackware 1 | . . . . . . 1 . . . . Protection 10 | . 2 1 . . 3 3 . . . 1 Artifact . | . . . . . . . . . . . Weapon 54 | 2 8 12 6 2 . 8 7 1 2 6 Energy Gun 3 | . 1 . . . . 2 . . . . Energy Cannon 3 | . . . . 1 . . . . . 2 Ballistic Gun 22 | 2 4 5 2 . . 3 1 1 2 2 Ballistic Cannon 7 | . . . . 1 . 1 4 . . 1 Launcher 6 | . 3 2 1 . . . . . . . Special Weapon 2 | . . . . . . 2 . . . . Impact Weapon . | . . . . . . . . . . . Slashing Weapon 11 | . . 5 3 . . . 2 . . 1 Piercing Weapon . | . . . . . . . . . . . Special Melee Weapon . | . . . . . . . . . . . Unidentified Prototypes 4 | . . . . . . . 2 . . 2 Corrupted Parts 1 | . . . . . . . . . 1 . System Corruption 4 | . . . . . . . . . 4 . Parts Lost 54 | . . 1 1 . . 19 9 2 5 17 Power 8 | . . 1 . . . 3 . . 1 3 Propulsion 17 | . . . . . . 6 6 . 1 4 Utility 22 | . . . 1 . . 8 3 1 1 8 Weapon 7 | . . . . . . 2 . 1 2 2 Highest Loss Streak 9 | . . 1 1 . . 9 9 1 5 7 To Critical Strikes 2 | . . . . . . . 2 . . . Average Slot Usage (%) 85 | . 99 85 83 87 72 86 79 85 85 78 Engine 10 | . 6 9 14 14 12 6 6 6 5 6 Core 1 | . 7 4 . . . . . . . 3 Treads 13 | . 14 14 14 13 9 13 12 13 13 10 Leg 1 | . . . . . . 9 5 6 3 . Wheel 9 | . 13 14 14 13 9 . . . . . Device 12 | . 8 . 6 13 20 27 13 25 28 15 Storage 5 | . 14 . 1 8 5 4 6 6 6 5 Processor 2 | . . . . . 2 . 6 6 6 14 Hackware 1 | . . . . . . 1 6 6 6 4 Protection 5 | . 5 13 7 . 5 8 6 . . 3 Energy Cannon 1 | . . . . 4 6 1 . . . . Ballistic Gun 7 | . 24 16 12 . . 6 3 4 8 8 Ballistic Cannon 3 | . . . . 9 . 1 6 7 3 . Slashing Weapon 6 | . . 9 12 9 . . 2 . . . Naked Turns 3 | . . . . . . . . . . 3 Heaviest Build 149 | 12 33 31 33 27 55 116 120 114 110 149 Greatest Support 160 | 26 40 20 20 22 56 120 120 100 160 160 Greatest Overweight (x) 5 | 1 3 2 1 2 5 1 5 1 1 1 Average Overweight (x) . | . 2 1 . . 1 . . 1 . . Largest Inventory Capacity 25 | 8 15 15 8 8 8 25 25 25 25 25 Average Capacity 10 | 7 14 5 5 6 7 8 25 25 25 24 Most Carried 25 | 8 15 15 8 8 8 17 25 25 25 25 Average Carried 10 | 5 14 4 5 6 7 7 21 24 23 24 Final Capacity 25 | 8 15 5 8 5 8 25 25 25 25 5 Final Carried 25 | 8 15 5 8 5 8 17 24 25 25 5 Class Distribution -------------------- 27% | Commander-Mutant 25% | Mutant 24% | Scavenger-Mutant 12% | Commander-Scrapper 10% | Subdweller-Mutant Dominant Class ---------------- Mutant | -10/Materials Mutant | -10/Subcaves Subdweller-Mutant | -9/Recycling Commander-Mutant | -9/Scraptown Commander-Mutant | -6/Factory Scavenger-Mutant | -6/Extension Scavenger-Mutant | -6/Cetus Scavenger-Mutant | -6/Archives Scavenger-Mutant | -6/Hub_04(d) Scavenger-Mutant | -5/Factory Resources | -11 -10 -10 -9 -9 -6 -6 -6 -6 -6 -5 ----------- Run | Yrd Mat Sub Rec Scr Fac Ext Cet Arc Hub Fac Matter Collected 3688 | 324 254 427 381 109 230 698 295 182 76 712 Remotely 327 | . . . . . 60 267 . . . . Salvage Created 4011 | 101 261 264 459 . 349 514 63 96 367 1537 Parts 205 | 10 19 16 23 . 17 33 2 1 19 65 Haulers Intercepted 1 | . . . . . . . . . . 1 Recyclers Shooed 5 | . 1 . . . . 1 . . . 3 Parts Field Recycled . | . . . . . . . . . . . Retrieved Matter . | . . . . . . . . . . . Parts Self-Destructed 9 | . . 9 . . . . . . . . Prevented . | . . . . . . . . . . . Kills | -11 -10 -10 -9 -9 -6 -6 -6 -6 -6 -5 ------- Run | Yrd Mat Sub Rec Scr Fac Ext Cet Arc Hub Fac Combat Hostiles Destroyed 58 | . 7 8 3 . 3 9 3 4 4 17 Guns 31 | . 7 6 3 . . 2 . . 4 9 Cannons 23 | . . . . . 2 7 3 4 . 7 AOE 3 | . . 2 . . . . . . . 1 Classes Destroyed 17 | 2 4 3 1 . 1 2 . . . 4 Worker 9 | . . . . . 2 . . . 2 5 Tunneler 3 | 2 1 . . . . . . . . . Hauler 1 | . . . . . . . . . . 1 Recycler 5 | 1 . . 1 . 1 1 . . . 1 Mechanic 1 | . . . . . . . . . . 1 Operator 3 | . 1 . . . 1 1 . . . . Turret 2 | . . 2 . . . . . . . . Watcher 5 | . 1 . . . 1 1 . . . 2 Swarmer 6 | . 2 1 . . . 3 . . . . Grunt 20 | . 5 . . . 3 3 . . . 9 Sentry 9 | . . 1 1 . . 1 . 4 1 1 Specialist 2 | . . . . . . . . . . 2 Hunter 1 | . . . . . . 1 . . . . Programmer 7 | . . . 2 . . . . . . 5 Behemoth 1 | . . . . . . 1 . . . . Cetus Guard 3 | . . . . . . . 3 . . . Lightning 3 | . . . . . . . . . 3 . Subdweller 6 | . . 6 . . . . . . . . Scrapoid 4 | . . . . . . . . . . 4 Best Kill Streak 6 | 3 4 2 1 . 6 3 2 2 4 5 Combat Bots Only 4 | . 4 2 1 . 3 2 2 2 4 3 Max Kills in Single Turn 4 | 1 1 2 1 . 2 1 1 1 1 4 Gunslinging . | . . . . . . . . . . . Exploded 2 | . . 2 . . . . . . . 1 Melee . | . . . . . . . . . . . Uniques/NPCs Destroyed . | . . . . . . . . . . . Combat | -11 -10 -10 -9 -9 -6 -6 -6 -6 -6 -5 -------- Run | Yrd Mat Sub Rec Scr Fac Ext Cet Arc Hub Fac Hostile Shots Fired 1145 | . 47 98 14 . 58 313 56 49 155 355 Missed 398 | . 13 48 2 . 15 113 14 18 79 96 Damage Taken 13311 | . 403 600 181 . 610 3422 991 594 1203 5307 Core 1971 | . 63 51 30 . 64 402 171 37 153 1000 Absorbed by Shields 80 | . . . . . 48 32 . . . . Reduced by Siege Mode 187 | . . . . . . . . 15 107 65 Ignored by Resistances 550 | . . . . . . . 152 160 114 124 Regen/Repaired (Parts) 1015 | . 18 . . 43 36 195 . . . 723 Core Remaining (%) 48 | 100 . . . 42 . . . . 2 . Volleys Fired 320 | 11 38 34 5 . 26 83 23 24 14 62 Largest 2 | 2 2 2 2 . 1 2 2 2 2 2 Hottest 128 | 40 70 70 60 . 40 128 106 106 86 85 Shots Fired 510 | 22 67 48 7 . 26 133 40 44 26 97 Gun 306 | 22 59 37 7 . . 80 6 . 25 70 Cannon 183 | . . . . . 26 51 34 44 1 27 Launcher 19 | . 8 11 . . . . . . . . Special 2 | . . . . . . 2 . . . . Kinetic 407 | 22 57 33 7 . . 90 40 44 26 88 Thermal 79 | . 2 4 . . 26 41 . . . 6 Explosive 19 | . 8 11 . . . . . . . . Electromagnetic 3 | . . . . . . . . . . 3 Robot Hit Streak 18 | 6 12 16 5 . 6 18 7 16 7 11 Robot Miss Streak 5 | 1 3 2 1 . 5 5 2 3 4 3 Penetration Max 1 | . . . . . . 1 . . . 1 Secondary Targets 4 | . . . . . . 2 . . 2 . Max Gunslinging Chain 1 | . . . . . . 1 . . 1 . Shots Hit Robots 350 | 15 36 36 14 . 12 91 23 37 15 71 Core Hits 165 | 6 20 23 7 . 7 29 11 11 8 43 Critical Kills 12 | . . . . . 1 1 . . 4 6 Critical Parts Destroyed 9 | . . . . . . 1 . . 1 7 Critical Strikes 35 | . . 1 . . 1 4 3 4 5 17 Burn 3 | . . 1 . . . 2 . . . . Meltdown 1 | . . . . . 1 . . . . . Destroy 21 | . . . . . . 2 . . 5 14 Blast 9 | . . . . . . . 3 4 . 2 Corrupt 1 | . . . . . . . . . . 1 Melee Attacks 40 | . . 17 18 . . . 4 . . 1 Impact . | . . . . . . . . . . . Slashing 40 | . . 17 18 . . . 4 . . 1 Piercing . | . . . . . . . . . . . Sneak Attacks 1 | . . . 1 . . . . . . . Combat Hostiles . | . . . . . . . . . . . Follow-up Attacks . | . . . . . . . . . . . Damage Inflicted 13271 | 189 543 807 830 . 920 2772 742 1125 599 4744 Guns 4729 | 189 444 549 110 . . 1171 . . 424 1842 Cannons 5257 | . . . . . 733 1311 742 1125 . 1346 Explosions 2507 | . 98 258 . . 187 290 . . 175 1499 Melee 720 | . . . 720 . . . . . . . Ramming 58 | . 1 . . . . . . . . 57 Kinetic 7908 | 189 432 498 110 . . 1524 742 1125 424 2864 Thermal 3893 | . 12 51 . . 920 1248 . . . 1662 Explosive 388 | . 98 258 . . . . . . . 32 Electromagnetic 304 | . . . . . . . . . 175 129 Impact . | . . . . . . . . . . . Slashing 720 | . . . 720 . . . . . . . Piercing . | . . . . . . . . . . . Highest Corruption 14 | . 3 3 3 . . . . . 14 7 Average Corruption 3 | . 2 3 3 . . . . . 12 4 Corruption Purged . | . . . . . . . . . . . Corruption Blocked 9 | . . . . . . . . . . 9 Effects 95 | . 9 39 27 . . . . . 6 14 Message Errors 23 | . 3 12 5 . . . . . . 3 Matter Fused 23 | . 2 7 9 . . . . . . 5 Heat Flow Errors 14 | . 1 6 5 . . . . . 1 1 Energy Discharges 11 | . 1 4 5 . . . . . . 1 Parts Rejected 2 | . . 1 . . . . . . . 1 Parts Fused 1 | . 1 . . . . . . . . . Data Loss (minor) 7 | . . 4 1 . . . . . . 2 Data Loss (major) 6 | . . 5 1 . . . . . . . Misfires 2 | . . . . . . . . . 1 1 Alerts 1 | . . . 1 . . . . . . . Misdirections 1 | . . . . . . . . . 1 . Weapon Failures 4 | . 1 . . . . . . . 3 . Overload Shots . | . . . . . . . . . . . Overflow Damage 676 | . 18 39 299 . 52 16 . 8 33 211 Projectiles 116 | . . . . . 52 16 . 8 . 40 Explosions 261 | . 18 39 . . . . . . 33 171 Melee 299 | . . . 299 . . . . . . . Knockbacks 10 | . . . . . . 3 . . . 7 Impact 2 | . . . . . . . . . . 2 Kinetic 8 | . . . . . . 3 . . . 5 Secondary . | . . . . . . . . . . . Self-Inflicted Damage 333 | . 2 57 . . . . . . 107 167 Shots 7 | . 1 2 . . . . . . 1 3 Rammed 5 | . 1 . . . . . . . . 4 Targets Rammed 6 | . 1 . . . . . . . . 5 Kicked 1 | . . . . . . . . . . 1 Crushed . | . . . . . . . . . . . Highest Temperature 483 | . 260 257 198 . 92 156 140 . 216 483 Average Temperature 92 | . 55 119 74 . 40 54 66 . 104 112 Received Heat Transfer 3170 | . 165 138 . . 63 902 180 162 138 1422 Effects 8 | . . . . . . . . . . 8 Shutdowns 2 | . . . . . . . . . . 2 Energy Bleed 2 | . . . . . . . . . . 2 Interference 3 | . . . . . . . . . . 3 Short Circuit 1 | . . . . . . . . . . 1 Siege Activations 5 | . . . . . . . . 1 1 3 Total Turns 140 | . . . . . . . . 26 42 72 Longest Duration 42 | . . . . . . . . 26 42 40 Robots Corrupted 1 | . . . . . . . . . 1 . Combat Hostiles . | . . . . . . . . . . . Parts Fried 1 | . . . . . . . . . 1 . Impact Corruptions . | . . . . . . . . . . . Robots Melted 1 | . . . . . 1 . . . . . Combat Hostiles 1 | . . . . . 1 . . . . . Parts Melted 3 | . . 1 . . 1 . . . . 1 Heat Transferred 2340 | . 37 222 . . 150 1000 . . . 931 Parts Sabotaged . | . . . . . . . . . . . Parts Stolen . | . . . . . . . . . . . Parts Stripped . | . . . . . . . . . . . Power Chain Reactions . | . . . . . . . . . . . Alert | -11 -10 -10 -9 -9 -6 -6 -6 -6 -6 -5 ------- Run | Yrd Mat Sub Rec Scr Fac Ext Cet Arc Hub Fac Peak Influence 632 | 15 237 . 280 . 205 265 84 122 272 632 Initial 133 | . 9 . 55 . . 56 84 . . 133 Average 130 | 4 131 . 74 . 80 109 32 74 97 304 Maximum Alert Level 2 | . 1 . 1 . 1 1 . . 1 2 Low Security (%) 76 | 100 77 . 83 . 98 89 100 100 73 27 Level 1 17 | . 22 . 16 . 1 10 . . 26 38 Level 2 6 | . . . . . . . . . . 34 Level 3 . | . . . . . . . . . . . Level 4 . | . . . . . . . . . . . Level 5 . | . . . . . . . . . . . High Security . | . . . . . . . . . . . Max Security . | . . . . . . . . . . . Squads Dispatched 12 | . 2 . . . 2 2 . . . 6 Investigation 4 | . . . . . 1 2 . . . 1 Extermination 1 | . . . . . . . . . . 1 Reinforcement 7 | . 2 . . . 1 . . . . 4 Assault . | . . . . . . . . . . . Garrison . | . . . . . . . . . . . Intercept . | . . . . . . . . . . . Searches Triggered . | . . . . . . . . . . . Construction Impeded 2 | . . . . . . . . . . 2 Haulers Reinforced . | . . . . . . . . . . . Active Scanning Responses . | . . . . . . . . . . . Cargo Convoy Interrupts 1 | . . . . . . . . . . 1 Stealth | -11 -10 -10 -9 -9 -6 -6 -6 -6 -6 -5 --------- Run | Yrd Mat Sub Rec Scr Fac Ext Cet Arc Hub Fac Distress Signals 2 | . . . . . . 1 1 . . . Communications Jammed . | . . . . . . . . . . . Distress Signals . | . . . . . . . . . . . Times Spotted 147 | . 20 13 7 . 14 34 5 11 7 36 Peak Tracking Total 11 | . 6 2 2 . 4 7 5 2 5 11 Tactical Retreats 7 | . 1 1 . . 1 2 . . . 2 Traps | -11 -10 -10 -9 -9 -6 -6 -6 -6 -6 -5 ------- Run | Yrd Mat Sub Rec Scr Fac Ext Cet Arc Hub Fac Traps Triggered 5 | . 2 1 . . . 1 . . . 1 Indirectly . | . . . . . . . . . . . Trap Hack Attempts . | . . . . . . . . . . . Triggered . | . . . . . . . . . . . Disarmed . | . . . . . . . . . . . Reprogrammed . | . . . . . . . . . . . Reused . | . . . . . . . . . . . Traps Extracted . | . . . . . . . . . . . Installed . | . . . . . . . . . . . Triggered 1 | . . . . . . . . . . 1 Machines | -11 -10 -10 -9 -9 -6 -6 -6 -6 -6 -5 ---------- Run | Yrd Mat Sub Rec Scr Fac Ext Cet Arc Hub Fac Machines Disabled 33 | . . 4 . . 3 2 1 1 5 17 Max in Single Turn 8 | . . 3 . . 3 1 1 1 4 8 Garrison Access 2 | . . . . . . . . . . 2 Network Hub 1 | . . . . . . . . . 1 . Energy Cycler 1 | . . . . . . 1 . . . . Machines Repaired . | . . . . . . . . . . . Machines Dismantled . | . . . . . . . . . . . Machines Sabotaged . | . . . . . . . . . . . Overloaded Fab Kills . | . . . . . . . . . . . Hacking | -11 -10 -10 -9 -9 -6 -6 -6 -6 -6 -5 --------- Run | Yrd Mat Sub Rec Scr Fac Ext Cet Arc Hub Fac Machines Accessed 47 | . 8 2 10 5 3 9 3 . . 7 Terminals 27 | . 6 . 6 . 2 8 3 . . 2 Fabricators 1 | . . . . . . . . . . 1 Repair Stations 2 | . 1 . . . . . . . . 1 Recycling Units 7 | . 1 . 4 . . 1 . . . 1 Scanalyzers . | . . . . . . . . . . . Garrison Access 3 | . . . . . 1 . . . . 2 Total Hacks 149 | . 35 12 30 22 6 20 5 . . 19 Successful 88 | . 16 12 20 22 1 8 1 . . 8 Failed 61 | . 19 . 10 . 5 12 4 . . 11 Catastrophic 9 | . 1 . 1 . 2 4 1 . . . Database Lockouts . | . . . . . . . . . . . Manual 48 | . 14 . 13 . 4 11 . . . 6 Terminals 82 | . 30 . 19 . 3 19 5 . . 6 Fabricators 2 | . . . . . . . . . . 2 Repair Stations 9 | . 3 . . . . . . . . 6 Recycling Units 15 | . 2 . 11 . . 1 . . . 1 Scanalyzers . | . . . . . . . . . . . Garrison Access 7 | . . . . . 3 . . . . 4 Terminal Hacks 64 | . 10 12 10 22 1 7 1 . . 1 Record 35 | . . 11 2 21 . . 1 . . . Part Schematic 1 | . . . 1 . . . . . . . Robot Analysis 4 | . 2 . . . . 2 . . . . Prototype ID Bank 4 | . 2 . 2 . . . . . . . Open Door 2 | . . . . . 1 1 . . . . Emergency Access Points 3 | . 1 . 2 . . . . . . . Terminal Index 1 | . 1 . . . . . . . . . Recycling Unit Index 1 | . . . 1 . . . . . . . Unreport Threat 1 | . . . . . . 1 . . . . Locate Traps 3 | . 1 . . . . 1 . . . 1 Hauler Manifests 2 | . 1 . 1 . . . . . . . Zone Layout 5 | . 2 . 1 . . 2 . . . . Derelict Proto ID Bank 2 | . . 1 . 1 . . . . . . Fabricator Hacks 1 | . . . . . . . . . . 1 Build 1 | . . . . . . . . . . 1 Repair Station Hacks 4 | . 2 . . . . . . . . 2 Scan Component 2 | . 1 . . . . . . . . 1 Repair 2 | . 1 . . . . . . . . 1 Recycling Unit Hacks 4 | . . . 4 . . . . . . . Retrieve Components 4 | . . . 4 . . . . . . . Scanalyzer . | . . . . . . . . . . . Garrison Access Hacks 2 | . . . . . . . . . . 2 Seal Access 2 | . . . . . . . . . . 2 Unauthorized Hacks 13 | . 4 . 6 . . 1 . . . 2 Terminals 4 | . 3 . 1 . . . . . . . Assimilate 1 | . 1 . . . . . . . . . Botnet 3 | . 2 . 1 . . . . . . . Fabricators . | . . . . . . . . . . . Repair Stations 3 | . . . . . . 1 . . . 2 Mechanics 1 | . . . . . . . . . . 1 Recycling Units 6 | . 1 . 5 . . . . . . . Reject 2 | . 1 . 1 . . . . . . . Tunnel 4 | . . . 4 . . . . . . . Fedlink 1 | . . . . . . 1 . . . . Scrapoids 1 | . . . . . . . . . . 1 Scanalyzers . | . . . . . . . . . . . Garrison Access . | . . . . . . . . . . . Data Cores Recovered 2 | . . . . . 1 1 . . . . Used 1 | . . . . . . 1 . . . . Hacking Detections 32 | . 8 . 7 . 2 8 3 . . 4 Full Trace Events 2 | . . . . . 1 1 . . . . Feedback Events . | . . . . . . . . . . . Feedback Blocked . | . . . . . . . . . . . Robot Schematics Acquired . | . . . . . . . . . . . Robots Built 2 | . . . . . . . . . . 2 Authchips . | . . . . . . . . . . . Time 76 | . . . . . . . . . . 76 Total Robot Build Rating 10 | . . . . . . . . . . 10 Part Schematics Acquired 1 | . . . 1 . . . . . . . Parts Built . | . . . . . . . . . . . Authchips . | . . . . . . . . . . . Time . | . . . . . . . . . . . Total Part Build Rating . | . . . . . . . . . . . Parts Repaired 2 | . 1 . . . . . . . . 1 Time 80 | . 26 . . . . . . . . 54 Parts Recycled . | . . . . . . . . . . . Recycled Matter . | . . . . . . . . . . . Retrieved Matter . | . . . . . . . . . . . Retrieved Components 32 | . . . 32 . . . . . . . Parts Scanalyzed . | . . . . . . . . . . . Part Schematics Acquired . | . . . . . . . . . . . Parts Damaged . | . . . . . . . . . . . Bothacking | -11 -10 -10 -9 -9 -6 -6 -6 -6 -6 -5 ------------ Run | Yrd Mat Sub Rec Scr Fac Ext Cet Arc Hub Fac Used RIF Installer . | . . . . . . . . . . . Robots Hacked . | . . . . . . . . . . . Non-combat . | . . . . . . . . . . . Combat . | . . . . . . . . . . . Robot Hacks Applied . | . . . . . . . . . . . Relay Couplers Released 1 | . . . . . . . . . . 1 Machine Destruction 1 | . . . . . . . . . . 1 Fabnet Peak Effective % . | . . . . . . . . . . . Robots Rewired 33 | . . . 20 . . 13 . . . . Allies Hacked . | . . . . . . . . . . . Hacks Repelled . | . . . . . . . . . . . Allies | -11 -10 -10 -9 -9 -6 -6 -6 -6 -6 -5 -------- Run | Yrd Mat Sub Rec Scr Fac Ext Cet Arc Hub Fac Total Allies 41 | . . . 20 . . 14 . . . 7 Largest Group 17 | . . . 17 17 17 6 5 . . 5 Highest-Rated Group 238 | . . . 196 198 198 188 132 . . 238 Highest-Rated Ally 50 | . . . 34 30 30 39 31 . . 50 Total Orders 12 | . . . . 7 5 . . . . . DROP 5 | . . . . . 5 . . . . . COLLECT 7 | . . . . 7 . . . . . . Ally Attacks 189 | . . . 13 . 16 138 14 . . 8 Total Damage 3943 | . . . 594 . 417 2545 342 . . 45 Kills 36 | . . . 7 . 5 23 1 . . . Allies Corrupted . | . . . . . . . . . . . Allies Melted 1 | . . . . . . 1 . . . . Intel | -11 -10 -10 -9 -9 -6 -6 -6 -6 -6 -5 ------- Run | Yrd Mat Sub Rec Scr Fac Ext Cet Arc Hub Fac Robot Analysis Total 4 | . 2 . . . . 2 . . . . Derelict Logs Recovered 4 | . . 2 . 2 . . . . . . Drone Launches . | . . . . . . . . . . . Drone Recoveries . | . . . . . . . . . . . Exploration | -11 -10 -10 -9 -9 -6 -6 -6 -6 -6 -5 ------------- Run | Yrd Mat Sub Rec Scr Fac Ext Cet Arc Hub Fac Turns Passed 13057 | 112 829 1942 1758 3995 436 1390 444 527 225 1399 Spaces Moved 6820 | 62 484 871 796 2559 267 694 150 184 92 661 Core 9 | 1 . . . . . . . . . 8 Treads 4010 | . 12 620 383 1641 . 307 142 184 92 629 Legs 344 | . . . . . . 312 8 . . 24 Wheels 2457 | 61 472 251 413 918 267 75 . . . . Hover . | . . . . . . . . . . . Flight . | . . . . . . . . . . . Fastest Speed 50 | 50 95 110 95 95 100 100 160 240 160 50 Average Speed 154 | 92 116 203 170 136 117 142 228 240 174 159 Slowest Speed 470 | 100 160 240 240 160 155 240 470 240 240 240 Overloaded Moves . | . . . . . . . . . . . Propulsion Burnouts . | . . . . . . . . . . . Robots Hopped . | . . . . . . . . . . . Cave-ins Triggered . | . . . . . . . . . . . Exploration Rate (%) 55 | 5 83 65 88 96 8 75 63 97 13 20 Regions Visited 10 Branch Regions 7 Pre-discovered Areas 4 | . . . 4 . . . . . . . Known Exits Taken 3 | . . . . . . . 1 1 1 . Unknown Exits Taken 7 | 1 1 1 1 1 1 1 . . . . Scrap Searched 5 | . . . . 5 . . . . . . Spaces Dug 13 | . . . 8 . 4 . . . . 1 Terrain Destroyed 407 | . 31 35 9 . 54 27 7 2 150 92 Melee 9 | . . . 8 . . . . . . 1 Projectile 62 | . . . 1 . 9 8 7 2 2 33 AOE 336 | . 31 35 . . 45 19 . . 148 58 Terrain Rammed . | . . . . . . . . . . . Walls Destroyed . | . . . . . . . . . . . Machines Disabled . | . . . . . . . . . . . Actions | -11 -10 -10 -9 -9 -6 -6 -6 -6 -6 -5 --------- Run | Yrd Mat Sub Rec Scr Fac Ext Cet Arc Hub Fac Total 8775 | 93 682 969 1168 3072 364 958 209 227 130 903 Wait 886 | 1 108 6 112 485 37 19 . 12 8 98 Move 6810 | 61 483 870 795 2558 266 693 149 183 91 661 Hop . | . . . . . . . . . . . Pick Up 111 | 10 19 7 4 6 4 20 14 4 6 17 Fast Attach 65 | 7 1 2 4 3 13 22 2 1 2 8 Attach 26 | . . 1 . 2 1 4 5 2 4 7 Detach 5 | . . . 1 1 1 1 1 . . . Swap 93 | 1 18 15 11 6 6 10 7 . 1 18 Drop 100 | 2 14 11 7 11 10 10 4 1 4 26 Fire 320 | 11 38 34 5 . 26 83 23 24 14 62 Melee 40 | . . 17 18 . . . 4 . . 1 Ram 1 | . 1 . . . . . . . . . Kick 1 | . . . . . . . . . . 1 Crush 4 | . . . . . . . . . . 4 Escape Stasis 2 | . . . . . . 2 . . . . Rewire 305 | . . . 211 . . 94 . . . . Trap . | . . . . . . . . . . . Miscellaneous 6 | . . 6 . . . . . . . . Route ------- -11/Scrapyard -10/Materials (discovered 5 exits: [*Mat x3] / [*Min] / *Sub) -10/Subcaves (discovered 3 exits: [*Mat x2] / *Rec) -9/Recycling (discovered 2 exits: [*Fac] / *Scr) -9/Scraptown (discovered 2 exits: *Fac x2) -6/Factory (discovered 2 exits: [*Low] / *Ext) -6/Extension (discovered 3 exits: *Fac x2 / *Cet) -6/Cetus -6/Archives (discovered 3 exits: *Fac / *Hub x2) -6/Hub_04(d) (discovered 2 exits: *Fac x2) -5/Factory History --------- Turn | Location | Event 34 | -11/Scrapyard | Discovered new exit (range 14) 113 | -11/Scrapyard | Entered Materials 186 | -10/Materials | Discovered new exit (range 16) 300 | -10/Materials | Build established: Mutant 545 | -10/Materials | Repaired Seismic Detector 556 | -10/Materials | Discovered new exit (range 8) 662 | -10/Materials | Discovered new exit (range 16) 754 | -10/Materials | Discovered new exit (range 8) 935 | -10/Materials | Discovered new exit (range 5) 942 | -10/Materials | Entered Subcaves 971 | -10/Subcaves | A swath of the cavern ceiling suddenly collapsed 986 | -10/Subcaves | Learned Materials emergency access door positions 1082 | -10/Subcaves | Visited Clippyterm 1085 | -10/Subcaves | Learned Factory garrison access intel 1341 | -10/Subcaves | Shifting Twisted Machinery released Mak. Sword 1362 | -10/Subcaves | Shifting Twisted Machinery released Mak. Light Armor Plating 1536 | -10/Subcaves | Discovered new exit (range 10) 1594 | -10/Subcaves | Learned Materials non-interactive machine intel 1946 | -10/Subcaves | Visited 4L-MR0's lab 1969 | -10/Subcaves | Found Powered Cannon 2643 | -10/Subcaves | Shifting Twisted Machinery released Sub. Machine Gun 2643 | -10/Subcaves | Shifting Twisted Machinery released Battle Cannon 2744 | -10/Subcaves | Curiously followed by a Cobbler waking with a query about "LVR3C" 2751 | -10/Subcaves | Shifting Twisted Machinery released Battle Cannon 2761 | -10/Subcaves | Discovered new exit (range 13) 2780 | -10/Subcaves | Discovered new exit (range 13) 2806 | -10/Subcaves | Build established: Subdweller-Mutant 2884 | -10/Subcaves | Entered Recycling 3518 | -9/Recycling | Core integrity fell below 50% 3769 | -9/Recycling | Discovered new exit (range 15) 4201 | -9/Recycling | Build established: Commander-Mutant 4238 | -9/Recycling | Scanned before Scraplab entrance 4264 | -9/Recycling | Entered Scraplab 4384 | -9/Recycling | Lost 3 allies 4543 | -9/Recycling | Discovered new exit (range 3) 4642 | -9/Recycling | Entered Scraptown 4642 | -9/Scraptown | Accompanied by 17 allies 4642 | -9/Scraptown | System corruption cleaned by C-Scrubber 5097 | -9/Scraptown | Visited Cave Peace 5173 | -9/Scraptown | Scanned Subdweller tech in exchange for log data 5178 | -9/Scraptown | Learned location of 1 exit from Upper Caves 5180 | -9/Scraptown | Learned Factory machine intel 5257 | -9/Scraptown | Discovered new exit (range 7) 5439 | -9/Scraptown | Visited Spacefarers 5903 | -9/Scraptown | Visited Shadow of the Wyrm 5964 | -9/Scraptown | Visited Assassins FH 6007 | -9/Scraptown | Visited The Evicted 6073 | -9/Scraptown | Visited Supply Room 6191 | -9/Scraptown | Visited Fellowship of the Rings 6241 | -9/Scraptown | Visited UFD Registry 6241 | -9/Scraptown | Registered with UFD as "Wrenchchassis" 6345 | -9/Scraptown | Visited Junk Repository 6391 | -9/Scraptown | Visited Abandonware Association 6409 | -9/Scraptown | Learned abandonware demo "KABOOM.EXE" 6440 | -9/Scraptown | Visited Chapter 10 6497 | -9/Scraptown | Visited DA-N13 Charitable Foundation 6502 | -9/Scraptown | Found DCF Scrap (31 items) 6618 | -9/Scraptown | Discovered new exit (range 5) 6721 | -9/Scraptown | Visited Supply Room 6758 | -9/Scraptown | Visited Science Guys 7037 | -9/Scraptown | Found Scrap Suit 7242 | -9/Scraptown | Visited Botcube Research 7266 | -9/Scraptown | Found Lrg. Botcube 7292 | -9/Scraptown | Visited Derelict Rescue Squad 7308 | -9/Scraptown | Attached Powered Cannon, gained temporary slot: Power 7339 | -9/Scraptown | Visited Curators Association 7347 | -9/Scraptown | Build established: Commander-Scrapper 8637 | -9/Scraptown | Entered Factory 8637 | -6/Factory | Accompanied by 17 allies 8637 | -6/Factory | Evolved 8 slots: Propulsion x2, Utility x6 8638 | -6/Factory | Loaded intel: 300 machine locations 8639 | -6/Factory | Loaded intel: 4 garrison access locations 8807 | -6/Factory | Lost 11 allies 8949 | -6/Factory | Build established: Commander-Mutant 9016 | -6/Factory | Lost 3 allies 9043 | -6/Factory | Discovered new exit (range 14) 9069 | -6/Factory | Discovered new exit (range 6) 9073 | -6/Factory | Entered Extension 9279 | -6/Extension | Build established: Mutant 9306 | -6/Extension | Energy Cycler disabled 9481 | -6/Extension | Lrg. Botcube activated 9487 | -6/Extension | Lrg. Botcube completed mutation into core form, armed with 1 gun, 1 melee weapon. 9616 | -6/Extension | Spotted B-75 Beast 9619 | -6/Extension | Extracted ID and sensor layout for unrecognized location from A7's data core 9668 | -6/Extension | Spotted B-75 Beast 9677 | -6/Extension | Allies destroyed B-75 Beast 9690 | -6/Extension | Discovered new exit (range 14) 9703 | -6/Extension | Lost 4 parts (1p2n1u) 9743 | -6/Extension | Destroyed B-75 Beast 9795 | -6/Extension | Lost 9 parts (1p3n4u1w) 9943 | -6/Extension | Core integrity fell below 50% 10057 | -6/Extension | Build established: Scavenger-Mutant 10404 | -6/Extension | Discovered new exit (range 10) 10405 | -6/Extension | Discovered new exit (range 6) 10463 | -6/Extension | Entered Cetus 10463 | -6/Cetus | Accompanied by 5 allies 10489 | -6/Cetus | Spotted Cetus Guard 10489 | -6/Cetus | Spotted Cetus Guard 10493 | -6/Cetus | Spotted Cetus Guard 10496 | -6/Cetus | Spotted Cetus Guard 10498 | -6/Cetus | Destroyed Cetus Guard 10513 | -6/Cetus | Allies destroyed Cetus Guard 10551 | -6/Cetus | Lost 5 allies 10553 | -6/Cetus | Destroyed Cetus Guard 10559 | -6/Cetus | Destroyed Cetus Guard 10586 | -6/Cetus | Lost 9 parts (6n3u) 10869 | -6/Cetus | Discovered new exit (range 16) 10905 | -6/Cetus | Identified exit to Archives 10907 | -6/Cetus | Entered Archives 11087 | -6/Archives | Unable to access archive contents 11126 | -6/Archives | Unable to access archive contents 11131 | -6/Archives | Discovered new exit (range 15) 11211 | -6/Archives | Discovered new exit (range 15) 11249 | -6/Archives | Identified exit to Hub_04(d) 11297 | -6/Archives | Unable to access archive contents 11302 | -6/Archives | Discovered new exit (range 16) 11338 | -6/Archives | Identified exit to Factory 11434 | -6/Archives | Entered Hub_04(d) 11456 | -6/Hub_04(d) | Discovered exit to Factory (range 11) 11487 | -6/Hub_04(d) | Discovered exit to Factory (range 4) 11562 | -6/Hub_04(d) | Network Hub disabled 11563 | -6/Hub_04(d) | Spotted Lightning 11565 | -6/Hub_04(d) | Spotted Lightning 11565 | -6/Hub_04(d) | Spotted Lightning 11567 | -6/Hub_04(d) | Core integrity fell below 20% 11573 | -6/Hub_04(d) | System corruption reached 10% 11590 | -6/Hub_04(d) | Destroyed Lightning 11596 | -6/Hub_04(d) | Destroyed Lightning 11599 | -6/Hub_04(d) | Lost 5 parts (1p1n1u2w) 11599 | -6/Hub_04(d) | Destroyed Lightning 11633 | -6/Hub_04(d) | Found Prototype Energy Cannon 11638 | -6/Hub_04(d) | Found Prototype Energy Cannon 11659 | -6/Hub_04(d) | Entered Factory 11659 | -5/Factory | Evolved 2 slots: Power x1, Utility x1 11754 | -5/Factory | Fabricated E-15 Imp? 12050 | -5/Factory | Repaired Centrium Heavy Treads 12479 | -5/Factory | Cargo convoy interrupted 12771 | -5/Factory | Scrapoid reinforcements arrived 12810 | -5/Factory | Murdered 4 allies 12934 | -5/Factory | Lost 3 parts (1p2u) 12962 | -5/Factory | Identified EMDS (x2) 13018 | -5/Factory | Lost 6 parts (1p1n2u2w) 13032 | -5/Factory | Core integrity fell below 50% 13053 | -5/Factory | Core integrity fell below 20% 13055 | -5/Factory | Released all parts (5) 13058 | -5/Factory | Destroyed by G-50 Soldier with Heavy Laser Last Messages --------------- 13045_ P-70 Sage destroyed. 13046_ Enh. Biometal Leg destroyed. 13049_ Penetrated by Slug. 13049_ P-70 Sage resets Y-64 Sentinel, system corruption cleaned. 13049_ Critical hit (Burn: +37). 13049_ Penetrated by Slug. 13051_ Y-64 Sentinel misfires. 13051_ Y-64 Sentinel destroyed. 13051_ Slug penetrates Wall. 13054_ P-70 Sage resets Y-64 Sentinel, system corruption cleaned. 13054_ Penetrated by Slug. 13055_ Released Broken Adv. Signal Interpreter. 13055_ Released Imp. Targeting Computer. 13055_ Released Huge Storage Unit. 13055_ Released Rnf. Fission Core. 13055_ Released Phase Cannon. 13057_ Slug penetrates Wall. 13058_ M-28 Smith repairs P-70 Sage. Map ----- +----------------------------------------------------+ | | | | | | | | | | | | | | | | | | | | | | | | | | | | | | | | | | | | | | | | | | | | | | | ???????????################??????????????????????? | | ???????????# /!![*! #??????????????????????? | | ???????????# [!!/[ @#???###????????????????? | | ???????????# *!]&* ! ;###T ##########???????? | | ???????????# !] *%=gYgp ???????? | | ???????????# %[*%! # ??????? | | ???????????# [ pg # ???????? | | ???????????#############m## ??????? | | ?????????? ??????? | | ?????????? #?????? | | ?????????? #?????? | | ???????????###+############ #?????? | | ??????????????????????????### ###### #?????? | | ????????????????????????????# #????????? ????????? | | ????????????????????????????# #????????? #?????? | | ????????????????????????????# #????????? #?????? | | ????????????????????????????# #????????? ####??? | | ????????????????????????????# #???????? ??? | | ????????????????????????????# #???????? ???? | | ????????????????????????????# #???????# ?????? | | ??????????????????????????### ###???? # #??????? | | ??????????????????????????# #####"# #??????? | | ???????????????????####+### #??????? | | ??????????????????+ #??????? | | ????????????????????### ### = ###????? | | ??????????????????????????# ##+#""""""""###### | | ?????????????????????????####+###!%! / | +----------------------------------------------------+ Best States ------------- Heat Dissipation 83 Energy Generation 41 Energy Capacity 465 Matter Stores 300 Matter Capacity 300 Sight Range 16 Terrain Scan Range 16 Terrain Scan Density 10 Power Amplification 50 Additional Mass Support 9 Corruption Block 15 Armor Coverage 1200 Resistance: KI 20 Resistance: TH 20 Weapon Cycling 15 Evasion (%) 55 Targeting Accuracy 6 Target Analysis 6 Recoil Reduction 4 Energy Filtering 30 Kinecelleration 40 Offensive Hacking 10 Trap Extractor Capacity 6 Item Schematics ----------------- Reactive Plating | -9/Recycling | Hacked Robot Schematics ------------------ None Fabricated ------------ E-15 Imp | x2 | -5/Factory | Preloaded Alien Tech Used ----------------- None Achievements -------------- None Challenges ------------ None Game ------ Seed SurveybotRocketBiocell Manual? 0 Play Time 02:02:26 Cumulative 115.9 hours Start 2024.07.30 @ 18:51:08 End 2024.07.30 @ 22:41:24 Sessions 3 Manual Loads 0 Difficulty Rogue Special Mode None Game No. 74 Rogue 71 Adventurer 3 Explorer 0 Win Type - Total 2 Types 2/0/0/0/0/0/0/0/0 Lore% 53 Gallery% 59 Achievement% 50 Wizard Run 0 Options --------- Layout 2 ASCII 0 Keyboard 1 Movement Vi Keybinds 1 Fullscreen 2 Font 24/Smallcaps Map View 50x44 Zoom Use 0% Tactical HUD 1 Map Filters NONE Filters NONE Steam 1 RUN: acf24ec4-7dc2-4577-8025-7e1e7474bb4e